Cogmind - Beta 13 @@@ ROGUE MODE // 2024.06.02 @ 03:21:24 Player: Malak Gallen Result: Destroyed by G-47 Trooper with Particle Gun Performance ------------- Evolutions (2) 1000 Regions Visited (4) 800 Robots Destroyed (37) 185 Value Destroyed (1212) 1212 Prototype IDs (2) 40 Alien Tech Used (0) 0 Bonus (0) 0 TOTAL SCORE: 3237 Bonus ------- None Cogmind --------- Core Integrity 0/550 Matter 63/300 Energy 184/280 System Corruption 0% Temperature Hot (262) Movement Core (200) Ox3 Location -8/Materials Parts ------- > --- POWER (1) -------- Heavy Ion Engine > --- PROPULSION (4) --- (None) > --- UTILITY (3) ------ Targeting Computer System Shield > --- WEAPON (3) ------- Particle Gun > --- INVENTORY (5) ---- Light Nuclear Core Signal Interpreter Actuator Array Peak State ------------ > --- POWER ------------ Light Nuclear Core > --- PROPULSION ------- Improved Aluminum Leg Carbon-fiber Leg Carbon-fiber Leg Carbon-fiber Leg > --- UTILITY ---------- Improved Heat Sink Small Storage Unit Targeting Computer > --- WEAPON ----------- Assault Cannon Assault Cannon > --- INVENTORY -------- Heavy Ion Engine Light Nuclear Core Signal Interpreter System Shield [Rating: 26] Favorites ----------- Power Light Ion Engine Engine Light Ion Engine Power Core Light Nuclear Core Propulsion Aluminum Leg Leg Aluminum Leg Hover Unit Hover Unit Utility Small Storage Unit Device Improved Heat Sink Storage Small Storage Unit Processor Targeting Computer Hackware System Shield Protection Weapon Shielding Weapon Light Assault Rifle Energy Gun Beam Rifle Ballistic Gun Light Assault Rifle Ballistic Cannon Assault Cannon Build | -11 -10 -9 -9 -8 ------- Run | Yrd Mat Mat Min Mat Slots Evolved 4 | . . 2 . 2 Power . | . . . . . Propulsion 2 | . . 1 . 1 Utility 1 | . . 1 . . Weapon 1 | . . . . 1 Parts Attached 59 | 6 11 10 5 27 Power 12 | 1 3 3 1 4 Engine 10 | 1 3 3 . 3 Core 2 | . . . 1 1 Reactor . | . . . . . Propulsion 26 | 2 6 4 2 12 Treads . | . . . . . Leg 24 | 2 4 4 2 12 Wheel . | . . . . . Hover 2 | . 2 . . . Flight . | . . . . . Utility 10 | 1 1 1 1 6 Device 3 | . . . . 3 Storage 1 | 1 . . . . Processor 1 | . . 1 . . Hackware 1 | . . . . 1 Protection 4 | . 1 . 1 2 Artifact . | . . . . . Weapon 11 | 2 1 2 1 5 Energy Gun 2 | . . . . 2 Energy Cannon . | . . . . . Ballistic Gun 7 | 2 1 2 1 1 Ballistic Cannon 2 | . . . . 2 Launcher . | . . . . . Special Weapon . | . . . . . Impact Weapon . | . . . . . Slashing Weapon . | . . . . . Piercing Weapon . | . . . . . Special Melee Weapon . | . . . . . Unidentified Prototypes . | . . . . . Parts Lost 22 | . . . . 22 Power 2 | . . . . 2 Propulsion 11 | . . . . 11 Utility 4 | . . . . 4 Weapon 5 | . . . . 5 Highest Loss Streak 20 | . . . . 20 To Critical Strikes . | . . . . . Average Slot Usage (%) 94 | . 92 97 100 90 Engine 8 | . 14 11 5 2 Core 2 | . . . 5 5 Leg 30 | . 23 31 33 34 Hover 1 | . 4 . . . Storage 11 | . 14 11 11 9 Processor 6 | . . 9 11 9 Protection 7 | . 7 11 11 3 Energy Gun 1 | . . . . 5 Ballistic Gun 21 | . 28 22 22 14 Naked Turns . | . . . . . Heaviest Build 26 | 10 11 17 17 26 Greatest Support 58 | 20 20 30 33 58 Greatest Overweight (x) 2 | 2 1 . . 1 Average Overweight (x) . | . . . . . Largest Inventory Capacity 8 | 8 8 8 8 8 Average Capacity 7 | 7 8 8 8 7 Most Carried 8 | 4 8 8 8 8 Average Carried 6 | 2 6 7 7 6 Final Capacity 8 | 8 8 8 8 5 Final Carried 8 | 4 8 8 8 3 Class Distribution -------------------- 56% | Mutant 25% | Scavenger-Mutant 17% | Scavenger-Gunner Dominant Class ---------------- Mutant | -10/Materials Mutant | -9/Materials Scavenger-Mutant | -9/Mines Scavenger-Gunner | -8/Materials Resources | -11 -10 -9 -9 -8 ----------- Run | Yrd Mat Mat Min Mat Matter Collected 1101 | 247 115 232 204 303 Remotely . | . . . . . Salvage Created 1366 | . 126 316 262 662 Parts 87 | . 14 21 16 36 Haulers Intercepted . | . . . . . Recyclers Shooed 1 | . . . 1 . Parts Field Recycled . | . . . . . Retrieved Matter . | . . . . . Parts Self-Destructed . | . . . . . Prevented . | . . . . . Kills | -11 -10 -9 -9 -8 ------- Run | Yrd Mat Mat Min Mat Combat Hostiles Destroyed 32 | . 4 5 5 18 Guns 25 | . 4 5 5 11 Cannons 7 | . . . . 7 Classes Destroyed 7 | . 3 2 2 . Worker 1 | . . . 1 . Recycler 1 | . . 1 . . Watcher 3 | . 2 1 . . Swarmer 7 | . 3 . . 4 Grunt 16 | . 1 3 4 8 Duelist 4 | . . . 1 3 Sentry 5 | . . 2 . 3 Best Kill Streak 7 | . 3 4 3 7 Combat Bots Only 7 | . 3 2 3 7 Max Kills in Single Turn 1 | . 1 1 1 1 Gunslinging . | . . . . . Exploded . | . . . . . Melee . | . . . . . Uniques/NPCs Destroyed . | . . . . . Combat | -11 -10 -9 -9 -8 -------- Run | Yrd Mat Mat Min Mat Hostile Shots Fired 344 | . 20 29 11 284 Missed 88 | . 6 8 6 68 Damage Taken 3787 | . 127 423 58 3179 Core 765 | . 39 172 . 554 Absorbed by Shields . | . . . . . Redirected to Shielding 83 | . 3 20 10 50 Core Remaining (%) 80 | 100 84 . 57 . Volleys Fired 128 | . 26 34 11 57 Largest 3 | . 2 2 2 3 Hottest 102 | . 40 46 46 102 Shots Fired 273 | . 52 68 22 131 Gun 243 | . 52 68 22 101 Cannon 30 | . . . . 30 Launcher . | . . . . . Special . | . . . . . Kinetic 249 | . 52 68 22 107 Thermal 24 | . . . . 24 Explosive . | . . . . . Electromagnetic . | . . . . . Robot Hit Streak 19 | . 6 11 4 19 Robot Miss Streak 3 | . 2 3 3 3 Penetration Max . | . . . . . Secondary Targets 3 | . . . . 3 Max Gunslinging Chain 1 | . . . . 1 Shots Hit Robots 170 | . 33 36 12 89 Core Hits 76 | . 12 15 9 40 Critical Kills 1 | . . . 1 . Critical Parts Destroyed . | . . . . . Critical Strikes 2 | . . . 1 1 Burn 1 | . . . . 1 Destroy 1 | . . . 1 . Melee Attacks . | . . . . . Impact . | . . . . . Slashing . | . . . . . Piercing . | . . . . . Sneak Attacks . | . . . . . Combat Hostiles . | . . . . . Follow-up Attacks . | . . . . . Damage Inflicted 2488 | . 260 426 197 1605 Guns 1993 | . 260 426 197 1110 Cannons 460 | . . . . 460 Explosions . | . . . . . Melee . | . . . . . Ramming 35 | . . . . 35 Kinetic 2175 | . 260 426 197 1292 Thermal 278 | . . . . 278 Explosive . | . . . . . Electromagnetic . | . . . . . Impact . | . . . . . Slashing . | . . . . . Piercing . | . . . . . Highest Corruption . | . . . . . Average Corruption . | . . . . . Corruption Purged . | . . . . . Corruption Blocked . | . . . . . Overload Shots . | . . . . . Overflow Damage . | . . . . . Projectiles . | . . . . . Explosions . | . . . . . Melee . | . . . . . Knockbacks 3 | . . . . 3 Impact . | . . . . . Kinetic 3 | . . . . 3 Secondary . | . . . . . Self-Inflicted Damage . | . . . . . Shots . | . . . . . Rammed 1 | . 1 . . . Targets Rammed 16 | . 1 . . 15 Kicked 15 | . . . . 15 Crushed . | . . . . . Highest Temperature 368 | . 28 17 9 368 Average Temperature 117 | . 11 7 7 142 Received Heat Transfer 1653 | . 42 117 36 1458 Effects 5 | . . . . 5 Energy Bleed 1 | . . . . 1 Interference 2 | . . . . 2 Short Circuit 1 | . . . . 1 Damage (minor) 1 | . . . . 1 Siege Activations . | . . . . . Robots Corrupted . | . . . . . Combat Hostiles . | . . . . . Parts Fried . | . . . . . Impact Corruptions . | . . . . . Robots Melted . | . . . . . Combat Hostiles . | . . . . . Parts Melted 2 | . . . . 2 Heat Transferred 777 | . . . . 777 Parts Sabotaged . | . . . . . Parts Stolen . | . . . . . Parts Stripped . | . . . . . Power Chain Reactions . | . . . . . Alert | -11 -10 -9 -9 -8 ------- Run | Yrd Mat Mat Min Mat Peak Influence 386 | . 172 217 214 386 Initial 84 | . . 2 84 83 Average 135 | . 39 126 181 218 Maximum Alert Level 1 | . . 1 1 1 Low Security (%) 68 | 100 100 76 45 46 Level 1 31 | . . 23 54 53 Level 2 . | . . . . . Level 3 . | . . . . . Level 4 . | . . . . . Level 5 . | . . . . . High Security . | . . . . . Max Security . | . . . . . Squads Dispatched 5 | . 1 1 . 3 Investigation 1 | . 1 . . . Extermination . | . . . . . Reinforcement 2 | . . 1 . 1 Assault . | . . . . . Garrison 2 | . . . . 2 Intercept . | . . . . . Searches Triggered . | . . . . . Construction Impeded . | . . . . . Haulers Reinforced . | . . . . . Active Scanning Responses . | . . . . . Cargo Convoy Interrupts . | . . . . . Stealth | -11 -10 -9 -9 -8 --------- Run | Yrd Mat Mat Min Mat Distress Signals . | . . . . . Communications Jammed . | . . . . . Distress Signals . | . . . . . Times Spotted 50 | . 8 8 5 29 Peak Tracking Total 10 | . 3 4 3 10 Tactical Retreats 3 | . 1 . . 2 Traps | -11 -10 -9 -9 -8 ------- Run | Yrd Mat Mat Min Mat Traps Triggered 1 | . 1 . . . Indirectly . | . . . . . Trap Hack Attempts . | . . . . . Triggered . | . . . . . Disarmed . | . . . . . Reprogrammed . | . . . . . Reused . | . . . . . Traps Extracted . | . . . . . Installed . | . . . . . Triggered . | . . . . . Machines | -11 -10 -9 -9 -8 ---------- Run | Yrd Mat Mat Min Mat Machines Disabled . | . . . . . Max in Single Turn . | . . . . . Machines Repaired . | . . . . . Machines Dismantled . | . . . . . Machines Sabotaged . | . . . . . Overloaded Fab Kills . | . . . . . Hacking | -11 -10 -9 -9 -8 --------- Run | Yrd Mat Mat Min Mat Machines Accessed 5 | . 2 1 1 1 Terminals 5 | . 2 1 1 1 Fabricators . | . . . . . Repair Stations . | . . . . . Recycling Units . | . . . . . Scanalyzers . | . . . . . Garrison Access . | . . . . . Total Hacks 11 | . 3 3 1 4 Successful 8 | . 2 2 1 3 Failed 3 | . 1 1 . 1 Catastrophic 1 | . . 1 . . Database Lockouts . | . . . . . Manual . | . . . . . Terminals 11 | . 3 3 1 4 Fabricators . | . . . . . Repair Stations . | . . . . . Recycling Units . | . . . . . Scanalyzers . | . . . . . Garrison Access . | . . . . . Terminal Hacks 8 | . 2 2 1 3 Robot Analysis 1 | . 1 . . . Prototype ID Bank 1 | . . 1 . . Emergency Access Points 1 | . 1 . . . Alert Level 1 | . . . . 1 Surveillance Status 1 | . . . . 1 Recall Reinforcements 1 | . . 1 . . Hauler Manifests 1 | . . . . 1 Zone Layout 1 | . . . 1 . Fabricator Hacks . | . . . . . Repair Station Hacks . | . . . . . Recycling Unit Hacks . | . . . . . Scanalyzer . | . . . . . Garrison Access Hacks . | . . . . . Unauthorized Hacks . | . . . . . Terminals . | . . . . . Fabricators . | . . . . . Repair Stations . | . . . . . Recycling Units . | . . . . . Scanalyzers . | . . . . . Garrison Access . | . . . . . Data Cores Recovered . | . . . . . Used . | . . . . . Hacking Detections 2 | . 1 1 . . Full Trace Events . | . . . . . Feedback Events . | . . . . . Feedback Blocked . | . . . . . Robot Schematics Acquired . | . . . . . Robots Built . | . . . . . Authchips . | . . . . . Time . | . . . . . Total Robot Build Rating . | . . . . . Part Schematics Acquired . | . . . . . Parts Built . | . . . . . Authchips . | . . . . . Time . | . . . . . Total Part Build Rating . | . . . . . Parts Repaired . | . . . . . Time . | . . . . . Parts Recycled . | . . . . . Recycled Matter . | . . . . . Retrieved Matter . | . . . . . Retrieved Components . | . . . . . Parts Scanalyzed . | . . . . . Part Schematics Acquired . | . . . . . Parts Damaged . | . . . . . Bothacking | -11 -10 -9 -9 -8 ------------ Run | Yrd Mat Mat Min Mat Used RIF Installer . | . . . . . Robots Hacked . | . . . . . Non-combat . | . . . . . Combat . | . . . . . Robot Hacks Applied . | . . . . . Relay Couplers Released . | . . . . . Fabnet Peak Effective % . | . . . . . Robots Rewired . | . . . . . Allies Hacked . | . . . . . Hacks Repelled . | . . . . . Allies | -11 -10 -9 -9 -8 -------- Run | Yrd Mat Mat Min Mat Total Allies . | . . . . . Largest Group . | . . . . . Highest-Rated Group . | . . . . . Highest-Rated Ally . | . . . . . Total Orders . | . . . . . Ally Attacks . | . . . . . Total Damage . | . . . . . Kills . | . . . . . Allies Corrupted . | . . . . . Allies Melted . | . . . . . Intel | -11 -10 -9 -9 -8 ------- Run | Yrd Mat Mat Min Mat Robot Analysis Total 1 | . 1 . . . Derelict Logs Recovered . | . . . . . Drone Launches . | . . . . . Drone Recoveries . | . . . . . Exploration | -11 -10 -9 -9 -8 ------------- Run | Yrd Mat Mat Min Mat Turns Passed 1735 | 68 480 327 334 526 Spaces Moved 1020 | 52 330 164 241 233 Core 22 | 22 . . . . Treads . | . . . . . Legs 927 | 30 259 164 241 233 Wheels . | . . . . . Hover 71 | . 71 . . . Flight . | . . . . . Fastest Speed 50 | 50 56 120 120 120 Average Speed 115 | 106 106 120 120 120 Slowest Speed 190 | 150 190 120 120 190 Overloaded Moves . | . . . . . Propulsion Burnouts . | . . . . . Robots Hopped . | . . . . . Cave-ins Triggered . | . . . . . Exploration Rate (%) 30 | 3 48 22 52 25 Regions Visited 4 Branch Regions 1 Pre-discovered Areas . | . . . . . Known Exits Taken . | . . . . . Unknown Exits Taken 4 | 1 1 1 1 . Scrap Searched 1 | . . . 1 . Spaces Dug . | . . . . . Terrain Destroyed 2 | . . . . 2 Melee . | . . . . . Projectile 2 | . . . . 2 AOE . | . . . . . Terrain Rammed . | . . . . . Walls Destroyed . | . . . . . Machines Disabled . | . . . . . Actions | -11 -10 -9 -9 -8 --------- Run | Yrd Mat Mat Min Mat Total 1360 | 61 421 243 268 367 Wait 68 | . 30 20 1 17 Move 1016 | 51 329 163 240 233 Hop . | . . . . . Pick Up 32 | 4 10 6 4 8 Fast Attach 20 | 6 3 . 1 10 Attach 12 | . . 3 . 9 Detach 2 | . 1 . . 1 Swap 27 | . 8 7 4 8 Drop 39 | . 13 10 7 9 Fire 128 | . 26 34 11 57 Melee . | . . . . . Ram 1 | . 1 . . . Kick 15 | . . . . 15 Crush . | . . . . . Escape Stasis . | . . . . . Rewire . | . . . . . Trap . | . . . . . Miscellaneous . | . . . . . Route ------- -11/Scrapyard -10/Materials -9/Materials -9/Mines -8/Materials History --------- Turn | Location | Event 29 | -11/Scrapyard | Discovered new exit (range 15) 69 | -11/Scrapyard | Entered Materials 332 | -10/Materials | Build established: Mutant 429 | -10/Materials | Discovered new exit (range 15) 549 | -10/Materials | Entered another Materials area 549 | -9/Materials | Evolved 2 slots: Propulsion x1, Utility x1 865 | -9/Materials | Discovered new exit (range 6) 876 | -9/Materials | Entered Mines 977 | -9/Mines | Received a Rocket Launcher from a helpful Derelict 1073 | -9/Mines | Build established: Scavenger-Mutant 1195 | -9/Mines | Discovered new exit (range 14) 1205 | -9/Mines | Assembled infested the area 1210 | -9/Mines | Entered Materials 1210 | -8/Materials | Evolved 2 slots: Propulsion x1, Weapon x1 1508 | -8/Materials | Build established: Scavenger-Gunner 1575 | -8/Materials | Garrison activated, responded to threat 1642 | -8/Materials | Core integrity fell below 50% 1718 | -8/Materials | Core integrity fell below 20% 1736 | -8/Materials | Destroyed by G-47 Trooper with Particle Gun Last Messages --------------- 01713_ Critical hit (Burn: +37). 01714_ Imp. Aluminum Leg destroyed. 01714_ Acquired 30 matter. 01717_ Critical hit (Burn: +37). 01718_ Lgt. Ion Engine destroyed. 01718_ G-47 Trooper destroyed. 01720_ Critical hit (Burn: +37). 01722_ Acquired Aluminum Leg. 01723_ Imp. Aluminum Leg destroyed. 01723_ Critical hit (Burn: +37). 01723_ G-47 Trooper destroyed. 01727_ Assault Cannon destroyed. 01727_ ALERT: Hostiles spotted, dispatching reinforcements to Terminal M006. 01728_ Imp. Aluminum Leg destroyed. 01731_ Assault Cannon destroyed. 01734_ Aluminum Leg destroyed. 01734_ Sml. Storage Unit destroyed. 01735_ Acquired Particle Gun. 01736_ Critical hit (Burn: +37). Map ----- +----------------------------------------------------+ | ?????????????????????????????????????????????????? | | ?????????????????????????????????????????????????? | | ?????????????????????????????????????????????????? | | ?????????????????????????????????????????????????? | | ?????????????????????????????????????????????????? | | ?????????????????????????????????????????????????? | | ?????????????????????????????????????????????????? | | ?????????????????????????????????????????????????? | | ?????????????????????????????????????????????????? | | ?????????????????????????????????????????????????? | | ?????????????????????????????????????????????????? | | ?????????????????????????????????????????????????? | | ?????????????????????????????????????????????????? | | ?????????????????????????????????????????????????? | | ?????????????????????????????????????????????????? | | ?????????????????????????????????????????????????? | | ?????????????????????????????????????????????????? | | ?????????????????????????????????????????????????? | | ?????????????????????????????????????????????????? | | ?????????????????????????????????????????????????? | | ????????????????????????????????????????????? ?? | | ???????????? ?????????????????????????#+####? ? | | ??????????? ???#########?????????## ## #? | | ?????????? # % Y !#????????? ## #? | | ?????????? !! ; [%g[%!#?????????# ## #? | | ?????????# !!??#u [g=@ #?????????# ## #? | | ?????????# ?#! %Y%% #?????????# ## #? | | ????????? ####/####?????????# ## #? | | ????????????? "T" !%% #?????????# ## #? | | ???????? """ #?????????# ## | | ???????? t #??????? ?# | | ???????? #??????" ?# ] | | ????????# ############ #????"""??#] =/! | | ???????????????????????# #??? ????# *!% | | ???????????????????????# ###/#######! =%! | | ???????????????????????# %[! ! | | ???????????????????????# | | ???????????????????????# | | ???????????????????????#### ##/################## | | ??????????????????????????# ## % #???????????# | | ??????????????????????????# ## """" #???????????# | | ??????????????????????????# ## """" #???????????# | | ??????????????????????????# ## " #???????????# | | ??????????????????????????# ## % ! #???????????# | | ??????????????????????????# ## "!"" #######?????# | | ??????????????????????????? ?# """" # """ #?????# | | ??????????????????????????? ?# """" # "T" #?????# | | ??????????????????????????? ?# # #?????# | | ??????????????????????????? ?# """" # ####### | | ??????????????????????????? ?# """" # # | +----------------------------------------------------+ Best States ------------- Heat Dissipation 45 Energy Generation 14 Energy Capacity 280 Matter Stores 300 Matter Capacity 300 Sight Range 16 Terrain Scan Range 16 Terrain Scan Density 10 Armor Coverage 225 Weapon Shielding 33 Evasion (%) 55 Targeting Accuracy 5 Defensive Hacking 10 Item Schematics ----------------- None Robot Schematics ------------------ None Fabricated ------------ Nothing Alien Tech Used ----------------- None Achievements -------------- None Challenges ------------ None Game ------ Seed DecoyHoverScrap Manual? 0 Play Time 00:45:06 Cumulative 8.4 hours Start 2024.06.02 @ 02:07:55 End 2024.06.02 @ 03:21:24 Sessions 3 Manual Loads 0 Difficulty Rogue Special Mode None Game No. 8 Rogue 8 Adventurer 0 Explorer 0 Win Type - Total 0 Types 0/0/0/0/0/0/0/0/0 Lore% 7 Gallery% 13 Achievement% 12 Wizard Run 0 Options --------- Layout 1 ASCII 0 Keyboard 1 Movement Numpad Keybinds 0 Fullscreen 1 Font 24/Cog Map View 50x35 Zoom Use 0% Tactical HUD 1 Map Filters NONE Filters NONE Steam 1 RUN: 4083fdae-b264-45d6-a3c7-624dbf03f42c